Cogmind - Beta 9.6 @@@ ROGUE MODE // 2020.07.12 @ 15:45:33 Player: Michael Result: Self-destructed Performance ------------- Evolutions (1) 500 Regions Visited (2) 400 Robots Destroyed (4) 20 Value Destroyed (125) 125 Prototype IDs (0) 0 Alien Tech Used (0) 0 Bonus (0) 0 TOTAL SCORE: 1045 Bonus ------- None Cogmind --------- Core Integrity 11/400 Matter 300/300 Energy 99/100 System Corruption 0% Temperature Cool (6) Movement Core (50) Location -9/Materials Parts ------- > --- POWER (1) -------- (None) > --- PROPULSION (4) --- (None) > --- UTILITY (2) ------ (None) > --- WEAPON (2) ------- (None) > --- INVENTORY (4) ---- Light Nuclear Core Small Storage Unit EM Pulse Gun Light Cannon Peak State ------------ > --- POWER ------------ (None) > --- PROPULSION ------- (None) > --- UTILITY ---------- (None) > --- WEAPON ----------- Light Assault Rifle Light Assault Rifle > --- INVENTORY -------- Wheel Small Storage Unit EM Pulse Gun [Rating: 2] Favorites ----------- Power None Propulsion None Utility None Weapon Light Assault Rifle Energy Gun EM Pulse Gun Ballistic Gun Light Assault Rifle Ballistic Cannon Light Cannon Build | -11 -10 -9 ------- Run | Scr Mat Mat Slots Evolved 2 | . . 2 Power . | . . . Propulsion 2 | . . 2 Utility . | . . . Weapon . | . . . Parts Attached 7 | 2 5 . Power . | . . . Engine . | . . . Core . | . . . Reactor . | . . . Propulsion . | . . . Treads . | . . . Leg . | . . . Wheel . | . . . Hover . | . . . Flight . | . . . Utility . | . . . Device . | . . . Storage . | . . . Processor . | . . . Hackware . | . . . Protection . | . . . Artifact . | . . . Weapon 7 | 2 5 . Energy Gun 2 | . 2 . Energy Cannon . | . . . Ballistic Gun 3 | 2 1 . Ballistic Cannon 2 | . 2 . Launcher . | . . . Special Weapon . | . . . Impact Weapon . | . . . Slashing Weapon . | . . . Piercing Weapon . | . . . Special Melee Weapon . | . . . Unidentified Prototypes . | . . . Parts Lost 1 | . . 1 Power . | . . . Propulsion . | . . . Utility . | . . . Weapon 1 | . . 1 Highest Loss Streak 1 | . . 1 Average Slot Usage (%) 22 | . 28 14 Energy Gun 6 | . 6 7 Ballistic Gun 13 | . 17 7 Ballistic Cannon 3 | . 5 . Naked Turns 26 | . . 26 Heaviest Build 4 | 2 4 3 Greatest Support 3 | 3 3 3 Greatest Overweight (x) 1 | . 1 . Average Overweight (x) . | . . . Largest Inventory Capacity 4 | 4 4 4 Average Capacity 4 | 4 4 4 Most Carried 4 | 4 4 4 Average Carried 3 | 2 3 3 Final Capacity 4 | 4 4 4 Final Carried 4 | 3 4 4 Class Distribution -------------------- 100% | Mutant Dominant Class ---------------- Mutant | -10/Materials Mutant | -9/Materials Resources | -11 -10 -9 ----------- Run | Scr Mat Mat Matter Collected 323 | 199 124 . Remotely . | . . . Salvage Created 103 | . 83 20 Parts 7 | . 5 2 Haulers Intercepted . | . . . Recyclers Shooed 1 | . 1 . Parts Field Recycled . | . . . Retrieved Matter . | . . . Parts Self-Destructed . | . . . Prevented . | . . . Kills | -11 -10 -9 ------- Run | Scr Mat Mat Combat Hostiles Destroyed 4 | . 3 1 Melee 1 | . . 1 Guns 1 | . 1 . Cannons 2 | . 2 . Classes Destroyed 2 | . 1 1 Swarmer 1 | . . 1 Grunt 3 | . 3 . Best Kill Streak 2 | . 2 1 Combat Bots Only 2 | . 2 1 Max Kills in Single Turn 1 | . 1 1 Gunslinging . | . . . Exploded . | . . . Melee 1 | . . 1 Uniques/NPCs Destroyed . | . . . Combat | -11 -10 -9 -------- Run | Scr Mat Mat Damage Taken 640 | . 164 476 Core 418 | . 29 389 Absorbed by Shields . | . . . Core Remaining (%) 94 | 100 88 . Volleys Fired 20 | . 15 5 Largest 2 | . 2 2 Hottest 60 | . 60 60 Shots Fired 39 | . 30 9 Gun 29 | . 20 9 Cannon 10 | . 10 . Launcher . | . . . Special . | . . . Kinetic 31 | . 26 5 Thermal . | . . . Explosive . | . . . Electromagnetic 8 | . 4 4 Robot Hit Streak 9 | . 9 2 Robot Miss Streak 7 | . 6 7 Penetration Max . | . . . Secondary Targets . | . . . Shots Hit Robots 21 | . 18 3 Core Hits 10 | . 7 3 Critical Hits 1 | . 1 . Critical Kills . | . . . Critical Parts Destroyed 1 | . 1 . Melee Attacks . | . . . Impact . | . . . Slashing . | . . . Piercing . | . . . Sneak Attacks . | . . . Combat Hostiles . | . . . Follow-up Attacks . | . . . Damage Inflicted 277 | . 208 69 Guns 143 | . 85 58 Cannons 123 | . 123 . Explosions . | . . . Melee . | . . . Ramming 11 | . . 11 Kinetic 214 | . 195 19 Thermal . | . . . Explosive . | . . . Electromagnetic 52 | . 13 39 Impact . | . . . Slashing . | . . . Piercing . | . . . Highest Corruption . | . . . Average Corruption . | . . . Corruption Purged . | . . . Overload Shots . | . . . Overflow Damage . | . . . Projectiles . | . . . Explosions . | . . . Melee . | . . . Knockbacks 2 | . 2 . Impact . | . . . Kinetic 1 | . 1 . Secondary 1 | . 1 . Self-Inflicted Damage 5 | . . 5 Shots . | . . . Rammed 3 | . . 3 Targets Rammed 3 | . . 3 Kicked . | . . . Crushed . | . . . Highest Temperature 20 | . 20 8 Average Temperature 7 | . 8 4 Received Heat Transfer 153 | . 93 60 Siege Activations . | . . . Robots Corrupted . | . . . Combat Hostiles . | . . . Parts Fried . | . . . Impact Corruptions . | . . . Robots Melted . | . . . Combat Hostiles . | . . . Parts Melted . | . . . Heat Transferred . | . . . Parts Sabotaged . | . . . Parts Stolen . | . . . Parts Stripped . | . . . Power Chain Reactions . | . . . Missiles Intercepted . | . . . Alert | -11 -10 -9 ------- Run | Scr Mat Mat Peak Influence 152 | . 125 152 Average Influence 75 | . 67 110 Maximum Alert Level . | . . . Low Security (%) 100 | 100 100 100 Level 1 . | . . . Level 2 . | . . . Level 3 . | . . . Level 4 . | . . . Level 5 . | . . . High Security . | . . . Max Security . | . . . Squads Dispatched 6 | . 1 5 Investigation . | . . . Extermination . | . . . Reinforcement 6 | . 1 5 Assault . | . . . Garrison . | . . . Intercept . | . . . Construction Impeded . | . . . Haulers Reinforced . | . . . Stealth | -11 -10 -9 --------- Run | Scr Mat Mat Distress Signals 3 | . 1 2 Communications Jammed . | . . . Distress Signals . | . . . Times Spotted 27 | . 7 20 Peak Tracking Total 16 | . 3 16 Tactical Retreats 1 | . . 1 Traps | -11 -10 -9 ------- Run | Scr Mat Mat Traps Triggered . | . . . Indirectly . | . . . Trap Hack Attempts . | . . . Triggered . | . . . Disarmed . | . . . Reprogrammed . | . . . Reused . | . . . Traps Extracted . | . . . Installed . | . . . Triggered . | . . . Machines | -11 -10 -9 ---------- Run | Scr Mat Mat Machines Disabled . | . . . Max in Single Turn . | . . . Machines Sabotaged . | . . . Garrisons Compromised . | . . . Overloaded Fab Kills . | . . . Fab Network Shutdowns . | . . . Hacking | -11 -10 -9 --------- Run | Scr Mat Mat Machines Accessed 3 | . 1 2 Terminals 3 | . 1 2 Fabricators . | . . . Repair Stations . | . . . Recycling Units . | . . . Scanalyzers . | . . . Garrison Access . | . . . Total Hacks 4 | . 1 3 Successful . | . . . Failed 4 | . 1 3 Catastrophic . | . . . Database Lockouts . | . . . Manual 2 | . 1 1 Terminals 4 | . 1 3 Fabricators . | . . . Repair Stations . | . . . Recycling Units . | . . . Scanalyzers . | . . . Garrison Access . | . . . Terminal Hacks . | . . . Fabricator Hacks . | . . . Repair Station Hacks . | . . . Recycling Unit Hacks . | . . . Scanalyzer . | . . . Garrison Access Hacks . | . . . Unauthorized Hacks . | . . . Terminals . | . . . Fabricators . | . . . Repair Stations . | . . . Recycling Units . | . . . Scanalyzers . | . . . Garrison Access . | . . . Data Cores Recovered . | . . . Used . | . . . Hacking Detections 3 | . 1 2 Full Trace Events . | . . . Feedback Events . | . . . Feedback Blocked . | . . . Robot Schematics Acquired . | . . . Robots Built . | . . . Matter . | . . . Time . | . . . Total Robot Build Rating . | . . . Part Schematics Acquired . | . . . Parts Built . | . . . Matter . | . . . Time . | . . . Total Part Build Rating . | . . . Parts Repaired . | . . . Time . | . . . Parts Recycled . | . . . Recycled Matter . | . . . Retrieved Matter . | . . . Retrieved Components . | . . . Parts Scanalyzed . | . . . Part Schematics Acquired . | . . . Parts Damaged . | . . . Bothacking | -11 -10 -9 ------------ Run | Scr Mat Mat Used RIF Installer . | . . . Robots Hacked . | . . . Non-combat . | . . . Combat . | . . . Robot Hacks Applied . | . . . Relay Couplers Released . | . . . Robots Rewired . | . . . Allies Hacked . | . . . Hacks Repelled . | . . . Allies | -11 -10 -9 -------- Run | Scr Mat Mat Total Allies . | . . . Largest Group . | . . . Highest-Rated Group . | . . . Highest-Rated Ally . | . . . Total Orders . | . . . Ally Attacks . | . . . Total Damage . | . . . Kills . | . . . Allies Corrupted . | . . . Allies Melted . | . . . Intel | -11 -10 -9 ------- Run | Scr Mat Mat Robot Analysis Total . | . . . Derelict Logs Recovered . | . . . Drone Launches . | . . . Drone Recoveries . | . . . Exploration | -11 -10 -9 ------------- Run | Scr Mat Mat Turns Passed 252 | 23 143 86 Spaces Moved 312 | 34 141 137 Core 312 | 34 141 137 Treads . | . . . Legs . | . . . Wheels . | . . . Hover . | . . . Flight . | . . . Fastest Speed 50 | 50 50 50 Average Speed 51 | 50 52 50 Slowest Speed 100 | 50 100 50 Overloaded Moves . | . . . Propulsion Burnouts . | . . . Robots Hopped . | . . . Cave-ins Triggered . | . . . Exploration Rate (%) 20 | 3 33 26 Regions Visited 2 Branch Regions . Pre-discovered Areas . | . . . Known Exits Taken . | . . . Unknown Exits Taken 2 | 1 1 . Scrap Searched . | . . . Spaces Dug . | . . . Terrain Destroyed . | . . . Melee . | . . . Projectile . | . . . AOE . | . . . Actions | -11 -10 -9 --------- Run | Scr Mat Mat Total 368 | 39 182 147 Wait 17 | . 17 . Move 310 | 33 140 137 Hop . | . . . Pick Up 6 | 4 2 . Fast Attach 2 | 1 1 . Attach 1 | 1 . . Detach 1 | . . 1 Swap 4 | . 4 . Drop 4 | . 3 1 Fire 20 | . 15 5 Melee . | . . . Ram 3 | . . 3 Kick . | . . . Crush . | . . . Escape Stasis . | . . . Rewire . | . . . Trap . | . . . Miscellaneous . | . . . Route ------- -11/Scrapyard -10/Materials -9/Materials History --------- Turn | Location | Event 10 | -11/Scrapyard | Discovered new exit (range 15) 24 | -11/Scrapyard | Entered Materials 158 | -10/Materials | Discovered new exit (range 13) 167 | -10/Materials | Entered another Materials area 167 | -9/Materials | Evolved 2 slots: Propulsion x2 240 | -9/Materials | Core integrity fell below 50% 252 | -9/Materials | Core integrity fell below 20% 253 | -9/Materials | Self-destructed Last Messages --------------- 00182_ O-16 Technician locks terminal. 00187_ T-07 Excavator is excavating. 00202_ ALERT: Hostiles spotted, dispatching reinforcements to Terminal M011. 00208_ K-01 Serf collects debris. 00212_ W-16 Scout sends out distress signal. 00221_ Dropped Propulsion Shielding. 00223_ K-01 Serf collects debris. 00224_ ALERT: Hostiles spotted, dispatching reinforcements to Terminal M012. 00227_ K-01 Serf collects debris. 00227_ Lgt. Assault Rifle destroyed. 00230_ O-16 Technician sends out distress signal. 00230_ O-16 Technician: "IFF HANDSHAKE FAILED. SECURING TERMINAL." 00232_ Connecting with Terminal... 00233_ Slammed into S-10 Pest. 00235_ S-10 Pest destroyed. 00236_ ALERT: Hostiles spotted, dispatching reinforcements to Terminal M008. 00237_ S-10 Pest destroyed. Map ----- +----------------------------------------------------+ | | | | | | | | | | | | | | | | | | | | | | | | | | | | | ?????????????????????????????###?????????????????? | | ?????????????????????????????# ????????????????? | | ?????????????????????????##### ! ???????????????? | | ?????????????????????????# # """ #?????????? | | ?????????????????????????# # """"" #?????????? | | ?????????????????????????# # """"" #?????????? | | ?????????????????????????# # """"" #?????????? | | ?????????????????????????# # """ ??????????? | | ?????????????????????????# #?? ????????????? | | ?????????????????????????? #?###+###???????????? | | ?????????????????####+######+### #???????????? | | ?????????? @ s #???????????? | | ?????????? g s tsT #???????????? | | ?????????? Y s #???????????? | | ???????????###+#############+### s o #???????????? | | ??????????????????????????# ???#### ##???????????? | | ??????????????????????????#???????# #????????????? | | ??????????????????????????????????# #????????????? | | ??????????????????????????????????# #????????????? | | ??????????????????????????????????# #????????????? | | ??????????????????????????????????# #????????????? | | ??????????????????????????????????# #????????????? | | ??????????????????????????????????# #???????#####+ | | ??????????????????????????????????# #???????? | | ??????????????????????????????????# #????????# """ | | ??????????????????????????????????# #????????# "R" | | ??????????????????????????????????# #????????# " " | | ??????????????????????????????????# #????????# | | ?????????????????????????????????## ####??????? | | ?????????????????????????????????# ##########+ | | ?????????????????????????????????# [ ! | | ?????????????????????????????????# %= | | ?????????????????????????????????# * | | ?????????????????????????????????# *%= ########## | | ???????????????????????????????#####+#####??????# | | ???????????????????????????????# %% #??????# | +----------------------------------------------------+ Best States ------------- Heat Dissipation 28 Energy Generation 5 Energy Capacity 100 Matter Stores 300 Matter Capacity 300 Sight Range 16 Terrain Scan Density 10 Evasion (%) 50 Item Schematics ----------------- None Robot Schematics ------------------ None Fabricated ------------ Nothing Alien Tech Used ----------------- None Achievements -------------- None Challenges ------------ None Game ------ Seed SensorDataGuard Manual? 0 Play Time 00:08:32 Cumulative 137.3 hours Start 2020.07.12 @ 15:07:38 End 2020.07.12 @ 15:45:33 Sessions 1 Manual Loads 0 Difficulty Rogue Special Mode None Game No. 47 Rogue 11 Adventurer 36 Explorer 0 Win Type - Total 5 Types 5/0/0/0/0/0/0 Lore% 32 Gallery% 51 Achievement% 35 Wizard Run 0 Options --------- ASCII 0 Keyboard 1 Movement Vi Keybinds 0 Fullscreen 1 Font 18/Terminus Map View 76x50 Tactical HUD 1 Map Filters NONE Filters NONE Steam 0 RUN: 518e0e7b-75ad-458c-95b9-a883a716aa07